[Event "XII Cracow ICC-A 2024"]
[Site "Krakow"]
[Date "2024.06.29"]
[Round "9.1"]
[White "Rozentalis, Eduardas"]
[Black "Kosakowski, Jakub"]
[Result "1/2-1/2"]
[ECO "B52"]
[WhiteElo "2476"]
[BlackElo "2480"]
[Annotator "TA"]
[PlyCount "65"]
[EventDate "2024.06.20"]
[EventType "swiss"]
[EventCountry "POL"]
[SourceTitle "playchess.com"]
[Source "ChessBase"]
[SourceQuality "1"]
[TimeControl "40/5400+30:1800+30"]

{[%evp 12,65,18,8,25,22,31,25,35,26,42,32,31,24,35,15,44,10,13,0,10,0,0,0,10,0,0,0,75,134,121,124,128,141,139,-15,-13,-20,-26,-17,0,0,0,0,0,0,0,0,0,0,0,0,0,0,0,0]} 1. e4 {[%emt 0:00:03]} c5 {[%emt 0:04:53]} 2. Nf3 {[%emt 0:00:17]} d6 {[%emt 0:00:23]} 3. Bb5+ {[%emt 0:00:14]} Bd7 {[%emt 0:02:13]} 4. Bxd7+ {[%emt 0:01:05]} Qxd7 {[%emt 0:00:15]} 5. c4 {[%emt 0:01:47]} e5 {[%emt 0:00:41]} 6. Nc3 {[%emt 0:00:31]} Nc6 {[%emt 0:00:15]} 7. d3 {[%emt 0:00:11]} Be7 {[%emt 0:00:10]} 8. O-O {[%emt 0:00:24]} Bd8 {[%emt 0:00:35]} 9. a3 {[%emt 0:02:30]} Nge7 {[%emt 0:01:20] White has an edge.} 10. Rb1 {[%emt 0:00:22]} Ng6 {[%emt 0:03:39]} 11. b4 {[%emt 0:00:47]} O-O {[%emt 0:00:22]} 12. Nd5 {[%emt 0:06:51]} f5 {[%emt 0:17:51]} 13. Re1 {[%emt 0:06:27]} b6 {[%emt 0:05:23]} 14. Bd2 {[%emt 0:05:19]} fxe4 {[%emt 0:13:51]} 15. dxe4 {[%emt 0:01:12]} Rf7 {[%emt 0:00:52]} 16. b5 {[%emt 0:07:18]} Nd4 {[%emt 0:02:52]} 17. Nxd4 {[%emt 0:00:35]} cxd4 {[%emt 0:00:07]} 18. Rb3 {[%emt 0:01:00]} Bh4 {[%emt 0:04:21]} 19. g3 {[%emt 0:01:08]} Raf8 {[%emt 0:01:35]} 20. gxh4 $16 {[%emt 0:06:20]} Nxh4 {[%emt 0:04:34] [#]} 21. f4 $1 {[%emt 0:01:11]} exf4 {[%emt 0:00:06] [#] Threatens to win with ...f3.} 22. Qh5 {[%emt 0:07:58]} f3 {[%emt 0:03:58] [#]} 23. Qxh4 {[%emt 0:01:20]} ({Only move:} 23. Rf1 $1 $16 Qh3 24. Rf2) 23... f2+ $11 {[%emt 0:00:08]} 24. Kg2 {[%emt 0:00:36] Black must now prevent Rf1.} fxe1=N+ {[%emt 0:00:53]} 25. Bxe1 {[%emt 0:00:07]} Qc8 {[%emt 0:01:59] The position is equal.} 26. Ne7+ {[%emt 0:10:47]} Rxe7 $1 {[%emt 0:00:50]} 27. Qxe7 {[%emt 0:00:03] Rg3 would now be deadly.} Qg4+ {[%emt 0:09:54]} 28. Rg3 $1 {[%emt 0:06:34]} Qe2+ {[%emt 0:00:09]} 29. Kh3 {[%emt 0:00:08]} g6 {[%emt 0:03:18] Hoping for ...Qf1+.} ({And not} 29... Qxe1 30. Qxg7#) 30. Qxd6 {[%emt 0:03:48]} Qh5+ {[%emt 0:06:54]} 31. Kg2 {[%emt 0:00:14]} Qe2+ {[%emt 0:00:10]} 32. Kh3 {[%emt 0:00:06]} Qh5+ {[%emt 0:00:32]} 33. Kg2 {[%emt 0:00:15] Weighted Error Value: White=0.10 (very precise) /Black=0.10 (very precise) .  Mistake:       	White=1     	Black=1      Inaccurate:     	White=1     	Black=1      OK:         	White=9     	Black=10     Best:        	White=4     	Black=3      Strong:       	White=1     	Black=1} 1/2-1/2

[Event "XII Cracow ICC-A 2024"]
[Site "Krakow"]
[Date "2024.06.29"]
[Round "9.2"]
[White "Gumularz, Szymon"]
[Black "Bogdanov, Egor"]
[Result "1-0"]
[ECO "E11"]
[WhiteElo "2593"]
[BlackElo "2433"]
[Annotator "TA"]
[PlyCount "71"]
[EventDate "2024.06.20"]
[EventType "swiss"]
[EventCountry "POL"]
[SourceTitle "playchess.com"]
[Source "ChessBase"]
[SourceQuality "1"]
[TimeControl "40/5400+30:1800+30"]

{[%evp 21,71,0,33,20,39,28,43,42,94,35,31,0,20,5,7,15,36,44,53,56,41,35,33,33,38,54,61,42,259,253,471,111,104,25,214,215,210,210,202,181,1100,1205,1001,1196,1160,1164,1098,1016,5798,5798,5406,5406]} 1. d4 {[%emt 0:00:03]} Nf6 {[%emt 0:06:01]} 2. c4 {[%emt 0:00:04]} e6 {[%emt 0:00:08]} 3. Nf3 {[%emt 0:00:07]} Bb4+ {[%emt 0:01:01]} 4. Bd2 {[%emt 0:00:09]} Qe7 {[%emt 0:10:51]} 5. e3 {[%emt 0:01:35]} Bxd2+ {[%emt 0:01:05]} 6. Qxd2 {[%emt 0:03:15]} d6 {[%emt 0:00:19]} 7. Nc3 {[%emt 0:01:11] E11: Bogo-Indian.} O-O {[%emt 0:00:26]} 8. Bd3 {[%emt 0:03:32]} e5 {[%emt 0:00:30]} 9. Bc2 {[%emt 0:00:05]} Bg4 {[%emt 0:08:21]} 10. h3 {[%emt 0:00:20]} Bxf3 {[%emt 0:07:31]} 11. gxf3 {[%emt 0:00:05]} exd4 {[%emt 0:01:14]} 12. Qxd4 {[%emt 0:00:06]} Nc6 {[%emt 0:00:29]} 13. Qh4 {[%emt 0:00:33]} g6 $1 {[%emt 0:00:48]} 14. O-O-O $146 {[%emt 0:01:17]} ({Predecessor:} 14. f4 Nd4 15. O-O-O Nxc2 16. Kxc2 Qe6 17. Kb1 Kg7 18. Rd4 c5 19. Rd3 Qxc4 20. Rxd6 {0-1 Devnani,K (2221)-Smith,B (2386) Budapest Vezerkepzo Autumn IM 2023 (6)}) 14... a6 {[%emt 0:12:27]} (14... a5 $14) 15. f4 {[%emt 0:04:03]} ({White should try} 15. Qg5 $1 $16) 15... b5 $1 $14 {[%emt 0:04:41]} 16. f5 {[%emt 0:12:30]} Ne5 {[%emt 0:09:23]} 17. Ne4 {[%emt 0:07:30]} Kg7 {[%emt 0:00:48]} 18. c5 {[%emt 0:01:28]} dxc5 {[%emt 0:03:11]} 19. f4 {[%emt 0:00:50]} Nc4 $1 {[%emt 0:06:40]} (19... Nf3 20. Qxf6+ Qxf6 21. Nxf6 Kxf6 22. fxg6 $16 (22. Be4 Rae8 $18)) 20. Rd7 $1 {[%emt 0:11:54]} Qxd7 {[%emt 0:00:05]} 21. Qxf6+ {[%emt 0:00:06]} Kg8 {[%emt 0:00:03]} 22. Qh4 {[%emt 0:03:37]} f6 $1 {[%emt 0:01:03]} 23. fxg6 {[%emt 0:01:51]} (23. Nxc5 $2 Qc6 (23... Qd2+ $2 24. Kb1 $19) 24. Re1 Qxc5 $19) 23... Qg7 {[%emt 0:13:03]} 24. Rg1 {[%emt 0:01:28]} (24. Nxc5 f5 25. Qxh7+ Qxh7 26. gxh7+ Kxh7 $17) 24... h6 $2 {[%emt 0:02:12]} (24... hxg6 $14 25. f5 (25. Nxc5 f5 $17) 25... Ne5 (25... g5 $2 26. Nxg5 Nxe3 27. Rg3 $18) 26. Nxc5 g5 27. Bb3+ Rf7) 25. f5 $1 $18 {[%emt 0:00:49]} (25. Nxc5 f5 26. Nd3 Rae8 $17 (26... Nxe3 27. Bb3+ Nc4 28. Ne5 $11)) 25... Rae8 $2 {[%emt 0:00:20]} (25... Rad8 26. Bb3 (26. Nxc5 Qe7 $11) 26... Rd5) 26. Nxc5 $2 {[%emt 0:09:32]} (26. Bb3 $18) 26... Rxe3 $16 {[%emt 0:00:05]} 27. Bb3 {[%emt 0:01:24]} (27. Nxa6 $2 Rd8 28. Bb3 Qe7 29. Bxc4+ bxc4 30. Qxc4+ Kg7 31. Nxc7 Rd7 (31... Rxh3 32. Ne6+ Kh8 33. g7+) 32. Qf7+ (32. Ne6+ $2 Rxe6 33. fxe6 Rc7 $19) 32... Qxf7 33. gxf7+ Kxf7 $19) (27. Ne6 Rxe6 28. b3 (28. fxe6 $2 f5 $19) 28... Re5 29. bxc4 Qe7 $17) (27. Rd1 $1 $16) 27... Rfe8 $2 {[%emt 0:03:34]} (27... Qe7 $1 $11 {and Black is okay.} 28. Bxc4+ Kg7 29. Ne6+ (29. Nxa6 $2 Re4 $19) 29... Rxe6 30. fxe6 Qc5) 28. Bxc4+ $18 {[%emt 0:00:40]} (28. Nxa6 $2 R8e4 29. Qf2 Qe7 $19 (29... Rxh3 30. Nc5 $14)) (28. Ne6 R8xe6 29. fxe6 (29. Bxc4 bxc4 30. fxe6 Rxe6 $11) 29... Rxe6 $11) 28... bxc4 {[%emt 0:00:05]} 29. Qxc4+ {[%emt 0:00:16]} (29. Nxa6 $2 R8e4 30. Qf2 Qe7 $19 (30... Rxh3 31. Nc5 $11)) (29. Ne6 R8xe6 30. fxe6 Rxe6 $17) 29... Kh8 {[%emt 0:00:13]} 30. Ne6 {[%emt 0:00:26]} R8xe6 $2 {[%emt 0:07:12]} (30... Qd7 $2 31. g7+ $18 (31. Qxc7 $2 {perishes.} Rc8 $19) (31. Qxc7 $2 Rc8 $19)) (30... R3xe6 31. fxe6 Qe7) 31. fxe6 $18 {[%emt 0:00:06]} Qe7 {[%emt 0:00:13]} 32. g7+ {[%emt 0:12:07]} ({Not} 32. Qxa6 Kg7 $16) 32... Kg8 {[%emt 0:00:01] [#]} 33. Rd1 $1 {[%emt 0:00:18]} (33. Qxa6 Qc5+ 34. Kb1 Qf5+ 35. Ka1 Qxe6 36. Qa8+ Qe8 37. Qxe8+ Rxe8 $11) 33... Qxe6 {[%emt 0:02:08]} 34. Qxc7 {[%emt 0:00:10]} Re1 {[%emt 0:00:43]} 35. Qb8+ {[%emt 0:00:12]} Qe8 {[%emt 0:00:26] [#]} 36. Qb3+ $1 {[%emt 0:00:09]} 1-0

[Event "XII Cracow ICC-A 2024"]
[Site "Krakow"]
[Date "2024.06.29"]
[Round "9.3"]
[White "Moussard, Jules"]
[Black "Vetoshko, Volodymyr"]
[Result "1-0"]
[ECO "C70"]
[WhiteElo "2610"]
[BlackElo "2505"]
[Annotator "TA"]
[PlyCount "117"]
[EventDate "2024.06.20"]
[EventType "swiss"]
[EventCountry "POL"]
[SourceTitle "playchess.com"]
[Source "ChessBase"]
[SourceQuality "1"]
[TimeControl "40/5400+30:1800+30"]

{[%evp 62,117,16,21,14,18,48,39,37,16,41,36,60,64,77,47,64,52,77,43,233,235,233,236,256,245,231,230,243,247,262,238,247,236,256,249,253,234,308,303,283,301,316,317,339,339,337,331,322,293,1522,1530,3943,1353,1394,3189,1379,1326]} 1. e4 {[%emt 0:00:59]} e5 {[%emt 0:01:08]} 2. Nf3 {[%emt 0:00:07]} Nc6 {[%emt 0:00:04]} 3. Bb5 {[%emt 0:00:07]} a6 {[%emt 0:00:05]} 4. Ba4 {[%emt 0:00:05]} Nge7 {[%emt 0:00:06]} 5. O-O {[%emt 0:02:31]} Ng6 {[%emt 0:00:19]} 6. d4 {[%emt 0:00:13] C60: Ruy Lopez: Unusual Black 3rd moves and 3...g6.} exd4 {[%emt 0:01:15]} 7. Nxd4 {[%emt 0:00:13]} Bc5 {[%emt 0:04:14]} 8. Nf5 {[%emt 0:00:12]} O-O {[%emt 0:00:08]} 9. Be3 {[%emt 0:00:04]} Bxe3 {[%emt 0:00:44]} 10. Nxe3 {[%emt 0:00:08]} b5 {[%emt 0:00:12]} 11. Bb3 {[%emt 0:00:05]} Na5 {[%emt 0:00:19]} 12. Nc3 {[%emt 0:00:10]} Nxb3 {[%emt 0:00:31]} 13. cxb3 {[%emt 0:00:07]} Bb7 {[%emt 0:02:28]} 14. Qc2 $146 {[%emt 0:00:05]} ({Predecessor:} 14. Rc1 Re8 15. Qg4 d6 16. Rfd1 Rc8 17. a4 h6 18. Kh1 Bc6 19. axb5 axb5 20. f3 {½-½ Ayush,S (2378)-Ghosh,D (2568) Bhubaneswar SOA op 1st 2024 (7)}) 14... Re8 {[%emt 0:04:27]} 15. Rad1 {[%emt 0:02:04]} d6 {[%emt 0:08:40]} 16. f3 {[%emt 0:01:32]} Nf4 {[%emt 0:10:28]} 17. Ncd5 {[%emt 0:03:39]} Nxd5 {[%emt 0:08:25]} 18. Nxd5 {[%emt 0:00:06]} Rc8 {[%emt 0:06:46]} 19. Ne3 {[%emt 0:00:55]} Qg5 {[%emt 0:04:30]} 20. Rd3 {[%emt 0:03:12]} g6 {[%emt 0:06:05]} 21. Qc3 {[%emt 0:01:24]} Qe5 {[%emt 0:01:34]} 22. Rc1 {[%emt 0:03:32]} h5 {[%emt 0:07:27]} 23. Qd2 {[%emt 0:07:07]} Red8 {[%emt 0:10:01]} 24. b4 {[%emt 0:01:32]} c6 {[%emt 0:03:57]} 25. Rd1 {[%emt 0:02:13]} d5 {[%emt 0:00:23]} 26. Qc3 {[%emt 0:01:15]} Qxc3 {[%emt 0:02:35]} 27. bxc3 {[%emt 0:00:24]} Re8 {[%emt 0:05:24]} 28. exd5 {[%emt 0:00:16]} cxd5 {[%emt 0:00:02]} 29. Kf2 {[%emt 0:00:11]} Rc7 {[%emt 0:00:51]} 30. Ke2 {[%emt 0:00:35]} a5 {[%emt 0:09:57]} 31. Kd2 {[%emt 0:01:40]} axb4 {[%emt 0:00:26]} 32. cxb4 {[%emt 0:00:03]} Ra8 {[%emt 0:00:59]} 33. Ra1 {[%emt 0:00:43]} Rac8 {[%emt 0:00:49]} 34. a3 {[%emt 0:01:30]} (34. Nxd5 $2 Rc2+ 35. Ke3 Re8+ (35... Rxg2 $2 36. Ne7+ Kg7 37. Nxc8 $18) 36. Kf4 g5+ (36... Rxg2 $2 37. Nf6+ Kf8 38. Nxe8 $18) 37. Kg3 h4+ 38. Kh3 Ree2 $19) 34... Kg7 {[%emt 0:00:07]} 35. h4 {[%emt 0:01:21]} (35. Nxd5 $2 Rc2+ 36. Ke3 Re8+ (36... Rxg2 $2 37. Nc3 $19) 37. Kf4 g5+ (37... Rxg2 $2 38. h4 $19) 38. Kf5 (38. Kg3 $2 h4+ 39. Kh3 Ree2 $19) 38... Rxg2 $19) 35... Ba8 {[%emt 0:00:30]} 36. Ra2 {[%emt 0:04:13]} (36. Nxd5 Rc2+ 37. Ke3 Rxg2 $17) 36... Rc1 {[%emt 0:00:05]} 37. Rc2 {[%emt 0:00:02]} R8xc2+ {[%emt 0:00:11]} 38. Nxc2 {[%emt 0:00:03]} Rh1 {[%emt 0:01:03]} 39. Nd4 {[%emt 0:00:31]} Rxh4 {[%emt 0:01:04]} 40. Ke3 {[%emt 0:00:02]} (40. Nxb5 Rh2 41. Nc7 Rxg2+ 42. Ke3 Bc6 $11) 40... Kf6 $2 {[%emt 0:01:37]} (40... Rh1 $1 $14) 41. Rc3 $1 $18 {[%emt 0:30:37]} (41. Nxb5 Rc4 $14) 41... Rh2 {[%emt 0:06:22]} (41... Ke5 $2 42. Rc8 $18) 42. Rc8 {[%emt 0:00:00]} (42. Nxb5 Rxg2 43. Rc8 Bb7 $11) 42... Bb7 {[%emt 0:00:16]} 43. Rc7 {[%emt 0:00:00]} Rxg2 {[%emt 0:01:00]} 44. Rxb7 {[%emt 0:00:00]} h4 {[%emt 0:00:07]} 45. Rb6+ {[%emt 0:00:00]} (45. Nxb5 h3 46. Rb8 Kg7 $11) 45... Kg7 {[%emt 0:02:21]} 46. Rc6 $1 {[%emt 0:00:00]} (46. Rxb5 $2 h3 $19) 46... h3 {[%emt 0:00:49]} 47. Rc1 $1 {[%emt 0:00:00]} (47. Nxb5 $2 h2 48. Nd4 h1=Q $19 (48... h1=B $2 49. Rc1 $18)) 47... h2 {[%emt 0:00:52]} 48. Rh1 $1 {[%emt 0:00:00]} (48. Nxb5 $2 {perishes.} Rg1 49. Rc7 h1=Q $19 (49... h1=R $2 50. Nd4 $19)) 48... g5 {[%emt 0:02:35]} 49. Nxb5 {[%emt 0:00:00]} f5 {[%emt 0:02:24] [#]} 50. Nd4 $1 {[%emt 0:00:00]} Kf6 {[%emt 0:02:31] [#]} 51. b5 $1 {[%emt 0:00:00]} Ra2 {[%emt 0:12:46]} 52. b6 {[%emt 0:00:00]} Rxa3+ {[%emt 0:00:25]} 53. Kd2 {[%emt 0:00:00]} Ra6 {[%emt 0:02:53]} 54. Rxh2 {[%emt 0:00:00]} Kg6 {[%emt 0:00:12]} 55. Nc6 {[%emt 0:00:00]} Ra2+ $2 {[%emt 0:00:54]} (55... Rxb6 56. Ne7+ Kf7 57. Rh7+ (57. Nxd5 $2 {too greedy.} Rb2+ 58. Kd3 Rxh2 $19) 57... Kf8 58. Nxf5 (58. Nxd5 Rd6 $11) 58... Rf6) 56. Kc1 $18 {[%emt 0:00:32]} Rxh2 {[%emt 0:00:18]} 57. b7 {[%emt 0:00:02]} Rh1+ {[%emt 0:01:46]} 58. Kb2 {[%emt 0:00:06]} Rh2+ {[%emt 0:00:17]} 59. Ka3 {[%emt 0:00:07]} 1-0

[Event "XII Cracow ICC-A 2024"]
[Site "Krakow"]
[Date "2024.06.29"]
[Round "9.4"]
[White "Drozdowski, Kacper"]
[Black "Fier, Alexandr"]
[Result "0-1"]
[ECO "B50"]
[WhiteElo "2448"]
[BlackElo "2602"]
[Annotator "TA"]
[PlyCount "66"]
[EventDate "2024.06.20"]
[EventType "swiss"]
[EventCountry "POL"]
[SourceTitle "playchess.com"]
[Source "ChessBase"]
[SourceQuality "1"]
[TimeControl "40/5400+30:1800+30"]

{[%evp 22,66,-22,-12,-26,-25,-29,-52,-32,-44,-44,-43,-47,-22,-30,-36,-37,-37,-33,-29,-14,-37,-33,-31,-33,-76,-48,-52,-46,-49,-49,-66,-43,-60,-61,-75,-68,-82,-80,-87,-87,-84,-86,-407,-389,-520,-493]} 1. e4 {[%emt 0:00:03]} c5 {[%emt 0:00:05]} 2. Nf3 {[%emt 0:00:04]} d6 {[%emt 0:00:04]} 3. c3 {[%emt 0:00:10]} Nf6 {[%emt 0:00:34]} 4. h3 {[%emt 0:00:15]} g6 {[%emt 0:04:12]} 5. Bd3 {[%emt 0:00:28]} Bg7 {[%emt 0:00:05]} 6. Bc2 {[%emt 0:00:09]} O-O {[%emt 0:00:09]} 7. O-O {[%emt 0:00:09]} e5 {[%emt 0:03:50]} 8. Re1 {[%emt 0:05:07]} Nc6 {[%emt 0:00:19]} 9. d4 {[%emt 0:01:36]} cxd4 {[%emt 0:01:45]} 10. cxd4 {[%emt 0:00:06]} exd4 {[%emt 0:00:05]} 11. Nxd4 {[%emt 0:00:49]} Nxd4 {[%emt 0:00:07]} 12. Qxd4 {[%emt 0:00:09]} Be6 {[%emt 0:00:09]} 13. Qb4 {[%emt 0:12:27][%cal Ob1c3]} d5 {[%emt 0:03:29]} 14. Nc3 {[%emt 0:07:09]} d4 {[%emt 0:03:11] Black is slightly better.} 15. Rd1 {[%emt 0:01:30]} Nd7 {[%emt 0:00:32]} 16. Nd5 {[%emt 0:07:47]} Bxd5 {[%emt 0:12:07]} 17. exd5 {[%emt 0:00:06]} Rc8 {[%emt 0:00:46]} 18. Bb3 {[%emt 0:03:11][%cal Oc1f4]} Nc5 {[%emt 0:01:03]} 19. Bf4 {[%emt 0:08:47]} Qf6 {[%emt 0:01:50]} 20. Bg3 {[%emt 0:00:21]} b6 {[%emt 0:01:31]} 21. d6 {[%emt 0:04:46]} Ne4 {[%emt 0:00:50]} 22. Rd3 {[%emt 0:04:24]} Nxg3 {[%emt 0:01:43]} 23. Rxg3 {[%emt 0:03:44]} Rcd8 {[%emt 0:00:04]} (23... Rc5 {feels hotter.} 24. Rd1 Qxd6 25. Rc3 dxc3 26. Rxd6 cxb2 27. Qe4 Rc1+) 24. Rf3 {[%emt 0:03:37]} Qxd6 {[%emt 0:00:05]} 25. Qxd6 {[%emt 0:00:07]} Rxd6 {[%emt 0:00:02]} 26. Rd1 {[%emt 0:00:47]} Rd7 {[%emt 0:00:35]} 27. Kf1 {[%emt 0:06:34]} Rc8 {[%emt 0:00:49]} 28. Ke2 {[%emt 0:01:25]} Re7+ {[%emt 0:00:33]} 29. Kd3 {[%emt 0:00:22]} Bh6 {[%emt 0:00:04]} 30. Bc4 {[%emt 0:04:53][%cal Oa2a4]} Rec7 {[%emt 0:02:55]} 31. b3 {[%emt 0:01:25]} Re7 {[%emt 0:00:05][%cal Ob6b5] Prevents Re1. Strongly threatening ...b5!} 32. Rf6 $2 {[%emt 0:05:25][%mdl 8192] [#]} (32. a4 $17 {nothing else works.}) 32... Bg7 $1 $19 {[%emt 0:01:19]} 33. Rf4 {[%emt 0:02:05] [#]} b5 $1 {[%emt 0:00:11][%mdl 512] Weighted Error Value: White=0.37/Black=0.03 (flawless) .  Loses game:     	White=1     	---        Inaccurate:     	White=2     	Black=1      OK:         	White=7     	Black=12     Best:        	White=1     	Black=1      Strong:       	---       	Black=1} 0-1

[Event "XII Cracow ICC-A 2024"]
[Site "Krakow"]
[Date "2024.06.29"]
[Round "9.5"]
[White "Samunenkov, Ihor"]
[Black "Kelires, Andreas"]
[Result "1/2-1/2"]
[ECO "D02"]
[WhiteElo "2532"]
[BlackElo "2515"]
[Annotator "TA"]
[PlyCount "57"]
[EventDate "2024.06.20"]
[EventType "swiss"]
[EventCountry "POL"]
[SourceTitle "playchess.com"]
[Source "ChessBase"]
[SourceQuality "1"]
[TimeControl "40/5400+30:1800+30"]

{[%evp 11,57,0,-2,0,0,0,0,0,14,0,0,-4,0,0,0,-28,-16,0,0,0,0,0,0,0,8,0,0,0,19,19,16,16,16,0,10,18,18,18,30,18,34,23,23,23,23,23,23,23]} 1. d4 {[%emt 0:00:06]} Nf6 {[%emt 0:00:08]} 2. Nf3 {[%emt 0:00:09]} d5 {[%emt 0:00:10]} 3. Bf4 {[%emt 0:00:18]} e6 {[%emt 0:01:45]} 4. e3 {[%emt 0:00:10]} Bd6 {[%emt 0:00:56]} 5. Ne5 {[%emt 0:00:14]} O-O {[%emt 0:01:52]} 6. Nd2 {[%emt 0:00:14][%cal Bb1d2,Bd2f3,Bf3e5][%mdl 32]} c5 {[%emt 0:07:20]} 7. c3 {[%emt 0:00:08]} b6 {[%emt 0:01:09]} 8. h4 {[%emt 0:00:41][%cal Bh2h4,Bh4h5,Bh5h6][%mdl 32]} Qc7 {[%emt 0:04:55]} 9. h5 {[%emt 0:05:46] The position is equal.} Nbd7 {[%emt 0:11:51][%cal Rd7e5]} 10. h6 {[%emt 0:32:08]} g6 {[%emt 0:00:13]} 11. Ndf3 {[%emt 0:01:50]} (11. Nxd7 {simplifies} Bxd7 12. Bxd6 Qxd6 13. Nf3) 11... c4 {[%emt 0:23:56]} 12. g4 {[%emt 0:05:54][%cal Bg2g4,Bg4g5][%mdl 32]} Ne4 {[%emt 0:08:33]} 13. g5 {[%emt 0:01:13]} b5 {[%emt 0:02:34]} 14. a3 {[%emt 0:15:47]} a5 {[%emt 0:00:21]} 15. Bg2 {[%emt 0:00:12]} Nxe5 {[%emt 0:10:39]} 16. Nxe5 {[%emt 0:02:45]} Nxg5 {[%emt 0:00:11]} 17. Bxg5 {[%emt 0:00:54]} f6 $1 {[%emt 0:00:02] [#]} 18. Bxf6 {[%emt 0:01:52]} Rxf6 {[%emt 0:00:05]} 19. f4 {[%emt 0:00:16]} Bd7 {[%emt 0:02:17]} 20. Qg4 {[%emt 0:01:02]} Raf8 {[%emt 0:02:11]} 21. O-O {[%emt 0:04:40]} Be8 {[%emt 0:02:05]} 22. Rf3 {[%emt 0:09:13]} Bxe5 {[%emt 0:04:07]} 23. fxe5 {[%emt 0:06:00]} Rxf3 {[%emt 0:00:19]} 24. Bxf3 {[%emt 0:00:06]} Qf7 {[%emt 0:00:59]} 25. Rf1 {[%emt 0:01:22] White wants to play Qh4.} Qf5 {[%emt 0:01:27]} 26. Qxf5 {[%emt 0:08:01]} gxf5 {[%emt 0:01:12] White has an edge.} 27. Kf2 {[%emt 0:00:09]} Bg6 {[%emt 0:00:48]} 28. Kg3 {[%emt 0:00:19]} Kf7 {[%emt 0:05:46]} 29. Kh4 {[%emt 0:01:01] Not much happened in this game.   Weighted Error Value: White=0.02 (flawless) /Black=0.04 (flawless) .  OK:         	White=13    	Black=10     Strong:       	---       	Black=1} 1/2-1/2